Cogmind - Beta 17 @@@ ROGUE MODE // 2026.07.18 @ 10:18:30 Player: cptwinky Result: Destroyed by Y-45 Defender with Heavy Assault Rifle Performance ------------- Evolutions (0) 0 Regions Visited (3) 600 Robots Destroyed (40) 200 Value Destroyed (1002) 1002 Prototype IDs (18) 360 Alien Tech Used (0) 0 Bonus (-109) -109 TOTAL SCORE: 2053 Bonus ------- Friendly Fire -109 Cogmind --------- Core Integrity 0/250 Matter 300/300 Energy 250/250 System Corruption 0% Temperature Cool (9) Movement Treading (160) Location -9/Recycling Parts ------- > --- POWER (1) -------- Ion Engine > --- PROPULSION (2) --- Light Treads Light Treads > --- UTILITY (2) ------ Large Storage Unit Light Armor Plating > --- WEAPON (2) ------- Improved Light Cannon Improved Light Cannon > --- INVENTORY (15) --- Makeshift Power Source Meta Core High-capacity Matter Pod (200) Makeshift Sensor Array Scrap Shield Self-contained Transmogrifier Power Bank Subdweller Beam Cannon Subdweller Beam Cannon Grenade Launcher Subdweller Shrapnel Launcher Datajack Mining Laser Multitool Peak State ------------ > --- POWER ------------ Ion Engine > --- PROPULSION ------- Light Treads Wheel > --- UTILITY ---------- Large Storage Unit Light Armor Plating > --- WEAPON ----------- Subdweller Beam Cannon Subdweller Beam Cannon > --- INVENTORY -------- Makeshift Power Source Meta Core High-capacity Matter Pod Makeshift Sensor Array Scrap Shield Self-contained Transmogrifier Autogun Improved Light Cannon Improved Light Cannon Grenade Launcher Subdweller Shrapnel Launcher Datajack Mining Laser Multitool [Rating: 14] Favorites ----------- Power Ion Engine Engine Ion Engine Propulsion Light Treads Treads Light Treads Wheel Wheel Utility Large Storage Unit Device Seismic Detector Storage Large Storage Unit Protection Light Armor Plating Weapon Improved Light Cannon Energy Cannon Beam Cannon Ballistic Gun Assault Rifle Ballistic Cannon Improved Light Cannon Launcher Subdweller Shrapnel Launcher Special Weapon Mining Laser Build | -11 -10 -10 -9 ------- Run | Yrd Mat Sub Rec Slots Evolved . | . . . . Power . | . . . . Propulsion . | . . . . Utility . | . . . . Weapon . | . . . . Parts Attached 33 | 6 11 13 3 Power 3 | 1 1 1 . Engine 3 | 1 1 1 . Core . | . . . . Reactor . | . . . . Propulsion 7 | 2 2 2 1 Treads 6 | 2 2 1 1 Leg . | . . . . Wheel 1 | . . 1 . Hover . | . . . . Flight . | . . . . Utility 7 | 1 3 1 2 Device 1 | . 1 . . Storage 2 | 1 1 . . Processor . | . . . . Hackware . | . . . . Protection 4 | . 1 1 2 Artifact . | . . . . Weapon 16 | 2 5 9 . Energy Gun . | . . . . Energy Cannon 4 | . 1 3 . Ballistic Gun 3 | 2 . 1 . Ballistic Cannon 5 | . 3 2 . Launcher 2 | . . 2 . Special Weapon 2 | . 1 1 . Impact Weapon . | . . . . Slashing Weapon . | . . . . Piercing Weapon . | . . . . Special Melee Weapon . | . . . . Unidentified Prototypes . | . . . . Parts Lost 4 | . . 4 . Power . | . . . . Propulsion 2 | . . 2 . Utility 2 | . . 2 . Weapon . | . . . . Highest Loss Streak 1 | . . 1 . To Critical Strikes . | . . . . Average Backups 13 | 4 11 14 14 Power . | . 1 . 1 Propulsion 1 | 2 1 . . Utility 2 | . 1 2 4 Weapon 6 | . 6 6 5 Tool/Special . | . . . . Unused Backups 15 | . 4 2 9 Power 1 | . . . 1 Propulsion 2 | . 2 . . Utility 6 | . 1 1 4 Weapon 3 | . 1 1 1 Tool/Special 3 | . . . 3 Average Slot Usage (%) 97 | . 97 97 89 Engine 14 | . 14 14 14 Treads 21 | . 28 19 17 Wheel 6 | . . 8 10 Device 3 | . 5 3 . Storage 14 | . 14 14 14 Protection 7 | . 6 8 3 Energy Cannon 9 | . 1 15 . Ballistic Gun 1 | . 3 . . Ballistic Cannon 15 | . 22 9 28 Special Weapon 1 | . . 1 . Peak Build Rating 14 | 6 10 14 14 Average Rating 10 | 5 8 11 13 On Entrance 7 | . 6 9 13 Avg Prop Armor Cover (%) 10 | . . 9 11 Naked Turns . | . . . . Heaviest Build 41 | 14 34 41 36 Greatest Support 40 | 40 40 40 40 Greatest Overweight (x) 4 | . . 4 3 Average Overweight (x) 1 | . . 2 2 Largest Inventory Capacity 15 | 8 15 15 15 Average Capacity 14 | 7 12 15 15 Most Carried 15 | 7 15 15 15 Average Carried 13 | 4 11 14 15 Final Capacity 15 | 8 15 15 15 Final Carried 15 | 7 15 15 15 Class Distribution -------------------- 100% | Mutant Dominant Class ---------------- Mutant | -10/Materials Mutant | -10/Subcaves Mutant | -9/Recycling Resources | -11 -10 -10 -9 ----------- Run | Yrd Mat Sub Rec Matter Collected 1883 | 237 641 636 369 Remotely . | . . . . Salvage Created 1189 | 74 545 347 223 Parts 73 | 9 30 27 7 Haulers Intercepted 2 | . 2 . . Recyclers Shooed 3 | . 2 . 1 Parts Field Recycled . | . . . . Retrieved Matter . | . . . . Parts Self-Destructed 9 | . . 9 . Prevented . | . . . . Parts Restored . | . . . . Kills | -11 -10 -10 -9 ------- Run | Yrd Mat Sub Rec Combat Hostiles Destroyed 27 | . 13 13 1 Cannons 22 | . 13 8 1 AOE 5 | . . 5 . Classes Destroyed 13 | 1 7 4 1 Worker 1 | . 1 . . Tunneler 4 | 4 . . . Hauler 2 | . 2 . . Recycler 3 | . 1 . 2 Mechanic 1 | . 1 . . Operator 1 | . 1 . . Swarmer 5 | . 3 2 . Grunt 12 | . 10 2 . Sentry 1 | . . . 1 Artisan 2 | . . 2 . Cobbler 1 | . . 1 . Subdweller 9 | . . 9 . Zionite 1 | . . 1 . Best Kill Streak 8 | 2 8 4 1 Combat Bots Only 6 | . 6 4 1 Max Kills in Single Turn 2 | 1 1 2 1 Gunslinging . | . . . . Exploded 2 | . . 2 . Melee . | . . . . Uniques/NPCs Destroyed . | . . . . Combat | -11 -10 -10 -9 -------- Run | Yrd Mat Sub Rec Hostile Shots Fired 99 | . 41 56 2 Missed 25 | . 10 15 . Hits 74 | . 31 41 2 Projectile 74 | . 31 41 2 AOE 2 | . . 2 . Critical Strikes 2 | . . 2 . Damage Taken 1366 | . 367 968 31 Core 256 | . 51 188 17 Absorbed by Shields . | . . . . Core Remaining (%) 100 | 100 . . . Volleys Fired 176 | 8 41 123 4 Largest 2 | 2 2 2 2 Hottest 113 | 40 100 113 66 Shots Fired 250 | 16 81 145 8 Gun 24 | 16 5 3 . Cannon 181 | . 75 98 8 Launcher 11 | . . 11 . Special 34 | . 1 33 . Kinetic 143 | 16 80 39 8 Thermal 104 | . 1 103 . Explosive 3 | . . 3 . Electromagnetic . | . . . . Robot Hit Streak 11 | 3 8 11 3 Robot Miss Streak 3 | 2 3 3 1 Penetration Max . | . . . . Secondary Targets . | . . . . Shots Hit Robots 113 | 10 47 52 4 Core Hits 60 | 4 22 31 3 Critical Kills . | . . . . Critical Parts Destroyed . | . . . . Critical Strikes . | . . . . Melee Attacks . | . . . . Impact . | . . . . Slashing . | . . . . Piercing . | . . . . Sneak Attacks . | . . . . Combat Hostiles . | . . . . Follow-up Attacks . | . . . . Damage Inflicted 3066 | 142 969 1872 83 Guns 203 | 142 27 34 . Cannons 1850 | . 925 842 83 Explosions 973 | . . 973 . Melee . | . . . . Ramming 17 | . 17 . . Kinetic 2253 | 142 952 1076 83 Thermal 560 | . . 560 . Explosive 236 | . . 236 . Electromagnetic . | . . . . Impact . | . . . . Slashing . | . . . . Piercing . | . . . . Highest Corruption . | . . . . Average Corruption . | . . . . Corruption Purged . | . . . . Corruption Blocked . | . . . . Overload Shots . | . . . . Overflow Damage 24 | . 21 3 . Projectiles 24 | . 21 3 . Explosions . | . . . . Melee . | . . . . Knockbacks 4 | . 4 . . Impact . | . . . . Kinetic 4 | . 4 . . Secondary . | . . . . Self-Inflicted Damage 22 | . . 22 . Shots 1 | . . 1 . Rammed 5 | . 5 . . Targets Rammed 5 | . 5 . . Kicked . | . . . . Crushed . | . . . . Highest Temperature 263 | . 72 263 12 Average Temperature 36 | . 20 59 5 Received Heat Transfer 671 | . 189 473 9 Effects 3 | . . 3 . Energy Bleed 1 | . . 1 . Interference 2 | . . 2 . Siege Activations . | . . . . Martial Activations . | . . . . Shielding Activations . | . . . . Robots Disrupted . | . . . . Combat Hostiles . | . . . . Robots Corrupted . | . . . . Combat Hostiles . | . . . . Parts Fried . | . . . . Impact Corruptions . | . . . . Robots Melted . | . . . . Combat Hostiles . | . . . . Parts Melted 1 | . . 1 . Heat Transferred 1025 | . . 1025 . Parts Sabotaged . | . . . . Parts Stolen . | . . . . Parts Stripped . | . . . . Power Chain Reactions . | . . . . Alert | -11 -10 -10 -9 ------- Run | Yrd Mat Sub Rec Maximum Alert Level . | . . . . Low Security (%) 100 | 100 100 . 100 Level 1 . | . . . . Level 2 . | . . . . Level 3 . | . . . . Level 4 . | . . . . Level 5 . | . . . . High Security . | . . . . Max Security . | . . . . Peak Influence 196 | 10 196 . 21 Initial 20 | . . . 20 Average 54 | 1 81 . 2 Influence Increases 709 | 20 408 250 31 Destroy 0b10 Robot/C 360 | . 260 80 20 Destroy 0b10 Robot/NC 60 | 20 30 . 10 Destroy Leader 74 | . 54 20 . Successful Hack 31 | . 31 . . Disable Machine 30 | . 30 . . Destroy Structure 4 | . 3 . 1 Lose Combat Pursuer 150 | . . 150 . Influence Decreases 709 | 20 314 301 74 Entered New Map 69 | . . 46 23 Time Decay 620 | 20 314 235 51 Lost Part 20 | . . 20 . Squads Dispatched 3 | . 3 . . Investigation 1 | . 1 . . Extermination . | . . . . Reinforcement 2 | . 2 . . Assault . | . . . . Garrison . | . . . . Intercept . | . . . . Searches Triggered . | . . . . Construction Impeded . | . . . . Haulers Reinforced . | . . . . Active Scanning Responses . | . . . . Cargo Convoy Interrupts . | . . . . Stealth | -11 -10 -10 -9 --------- Run | Yrd Mat Sub Rec Distress Signals 3 | . 3 . . Communications Jammed . | . . . . Distress Signals . | . . . . Times Spotted 50 | . 26 23 1 Peak Tracking Total 3 | . 3 3 . Tactical Retreats 5 | . . 5 . Traps | -11 -10 -10 -9 ------- Run | Yrd Mat Sub Rec Traps Triggered 3 | . 1 2 . Indirectly . | . . . . Trap Hack Attempts . | . . . . Triggered . | . . . . Disarmed . | . . . . Reprogrammed . | . . . . Reused . | . . . . Traps Extracted . | . . . . Installed . | . . . . Triggered . | . . . . Machines | -11 -10 -10 -9 ---------- Run | Yrd Mat Sub Rec Machines Disabled 3 | . 2 1 . Max in Single Turn 1 | . 1 1 . Machines Repaired . | . . . . Machines Dismantled . | . . . . Machines Sabotaged . | . . . . Overloaded Fab Kills . | . . . . Hacking | -11 -10 -10 -9 --------- Run | Yrd Mat Sub Rec Machines Accessed 5 | . 4 1 . Terminals 3 | . 3 . . Fabricators . | . . . . Repair Stations 1 | . 1 . . Recycling Units . | . . . . Scanalyzers . | . . . . Garrison Access . | . . . . Total Hacks 12 | . 11 1 . Successful 6 | . 5 1 . Failed 6 | . 6 . . Catastrophic . | . . . . Database Lockouts . | . . . . Manual 3 | . 3 . . Terminals 9 | . 9 . . Fabricators . | . . . . Repair Stations 2 | . 2 . . Recycling Units . | . . . . Scanalyzers . | . . . . Garrison Access . | . . . . Terminal Hacks 6 | . 5 1 . Robot Analysis 3 | . 3 . . Prototype ID Bank 2 | . 2 . . Proto ID Catalog 1 | . . 1 . Fabricator Hacks . | . . . . Repair Station Hacks . | . . . . Recycling Unit Hacks . | . . . . Scanalyzer . | . . . . Garrison Access Hacks . | . . . . Unauthorized Hacks . | . . . . Terminals . | . . . . Fabricators . | . . . . Repair Stations . | . . . . Recycling Units . | . . . . Scanalyzers . | . . . . Garrison Access . | . . . . Data Cores Recovered . | . . . . Used . | . . . . Hacking Detections 3 | . 3 . . Full Trace Events . | . . . . Feedback Events . | . . . . Feedback Blocked . | . . . . Robot Schematics Acquired . | . . . . Robots Built . | . . . . Authchips . | . . . . Time . | . . . . Total Robot Build Rating . | . . . . Part Schematics Acquired . | . . . . Parts Built . | . . . . Authchips . | . . . . Time . | . . . . Total Part Build Rating . | . . . . Part Studies Acquired . | . . . . Parts Repaired . | . . . . Time . | . . . . Parts Recycled . | . . . . Recycled Matter . | . . . . Retrieved Matter . | . . . . Retrieved Components . | . . . . Parts Scanalyzed . | . . . . Part Schematics Acquired . | . . . . Parts Damaged . | . . . . Bothacking | -11 -10 -10 -9 ------------ Run | Yrd Mat Sub Rec Used RIF Installer . | . . . . Robots Hacked . | . . . . Non-combat . | . . . . Combat . | . . . . Robot Hacks Applied . | . . . . Relay Couplers Released . | . . . . Fabnet Peak Effective % . | . . . . Robots Rewired . | . . . . Allies Hacked . | . . . . Hacks Repelled . | . . . . Allies | -11 -10 -10 -9 -------- Run | Yrd Mat Sub Rec Total Allies . | . . . . Largest Group . | . . . . Highest-Rated Group . | . . . . Highest-Rated Ally . | . . . . Total Orders . | . . . . Ally Attacks . | . . . . Total Damage . | . . . . Kills . | . . . . Allies Corrupted . | . . . . Allies Melted . | . . . . Intel | -11 -10 -10 -9 ------- Run | Yrd Mat Sub Rec Active Infowar (turns) 1072 | . 459 613 . Seismic 1072 | . 459 613 . Robot Analysis Total 3 | . 3 . . Derelict Logs Recovered . | . . . . Drone Launches . | . . . . Drone Recoveries . | . . . . Exploration | -11 -10 -10 -9 ------------- Run | Yrd Mat Sub Rec Turns Passed 4188 | 162 1137 2464 425 Spaces Moved 2415 | 77 590 1445 303 Core 3 | 3 . . . Treads 1130 | 74 590 406 60 Legs . | . . . . Wheels 1282 | . . 1039 243 Hover . | . . . . Flight . | . . . . Fastest Speed 50 | 50 160 125 125 Average Speed 141 | 155 160 135 131 Slowest Speed 160 | 160 160 160 160 Overloaded Moves . | . . . . Propulsion Burnouts . | . . . . Robots Hopped . | . . . . Potential Cave-ins . | . . . . Cave-ins Triggered . | . . . . Exploration Rate (%) 55 | 4 95 57 64 Regions Visited 3 Branch Regions 2 Pre-discovered Areas 1 | . . 1 . Known Exits Taken . | . . . . Unknown Exits Taken 3 | 1 1 1 . Scrap Searched . | . . . . Spaces Dug 14 | . . 14 . Terrain Destroyed 120 | . . 119 1 Melee . | . . . . Projectile 26 | . . 25 1 AOE 94 | . . 94 . Terrain Rammed . | . . . . Walls Destroyed . | . . . . Machines Disabled . | . . . . Actions | -11 -10 -10 -9 --------- Run | Yrd Mat Sub Rec Total 2871 | 100 701 1751 319 Wait 167 | 3 25 132 7 Move 2412 | 76 589 1444 303 Hop . | . . . . Pick Up 36 | 7 16 13 . Fast Attach 11 | 6 2 . 3 Attach 6 | . 2 4 . Detach 2 | . 1 1 . Swap 31 | . 8 23 . Drop 25 | . 12 11 2 Fire 176 | 8 41 123 4 Melee . | . . . . Ram . | . . . . Kick . | . . . . Crush 5 | . 5 . . Escape Stasis . | . . . . Rewire . | . . . . Trap . | . . . . Miscellaneous . | . . . . Route ------- -11/Scrapyard -10/Materials (discovered 5 exits: [*Mat x3] / [*Min] / *Sub) -10/Subcaves (discovered 2 exits: [*Mat] / *Rec) -9/Recycling (discovered 1 exit: [*Fac]) History --------- Turn | Location | Event 30 | -11/Scrapyard | Discovered new exit (range 16) 163 | -11/Scrapyard | Entered Materials 296 | -10/Materials | Discovered new exit (range 16) 328 | -10/Materials | Build established: Mutant 606 | -10/Materials | Discovered new exit (range 16) 900 | -10/Materials | Discovered new exit (range 15) 974 | -10/Materials | Discovered new exit (range 9) 1290 | -10/Materials | Discovered new exit (range 7) 1300 | -10/Materials | Entered Subcaves 1309 | -10/Subcaves | Shifting Twisted Machinery released Sub. Monowheel 1319 | -10/Subcaves | Shifting Twisted Machinery released Sub. Beam Cannon 1434 | -10/Subcaves | Visited 4L-MR0's lab 1457 | -10/Subcaves | Found Meta Core 1462 | -10/Subcaves | Found Prototype Device 2087 | -10/Subcaves | Core integrity fell below 50% 2159 | -10/Subcaves | Discovered new exit (range 10) 2532 | -10/Subcaves | Learned location of Zion (-7) 2532 | -10/Subcaves | Met a Zionite searching for "candidates" 2752 | -10/Subcaves | Discovered new exit (range 9) 3079 | -10/Subcaves | Core integrity fell below 20% 3410 | -10/Subcaves | A Subdweller sparked back to life 3410 | -10/Subcaves | A Subdweller sparked back to life 3438 | -10/Subcaves | Found Power Bank 3764 | -10/Subcaves | Entered Recycling 4187 | -9/Recycling | Discovered new exit (range 15) 4189 | -9/Recycling | Destroyed by Y-45 Defender with Heavy Assault Rifle Last Messages --------------- 03871_ R-06 Scavenger collects Lgt. Ion Engine. 03872_ Acquired 93 matter. 03874_ Acquired 2 matter. 04060_ Acquired Propulsion Shielding. 04076_ Y-45 Defender destroyed. 04089_ Dropped Wheel. 04089_ Acquired Lgt. Treads. 04091_ Acquired 51 matter. 04095_ R-06 Scavenger collects Beam Rifle. 04096_ Dropped Propulsion Shielding. 04096_ Acquired Lgt. Armor Plating. 04099_ Acquired 2 matter. 04099_ R-06 Scavenger collects Wheel. 04103_ R-06 Scavenger collects Propulsion Shielding. 04106_ R-06 Scavenger collects Heat Sink. 04107_ R-06 Scavenger collects Imp. Ion Engine. 04130_ Acquired 64 matter. 04139_ Acquired 75 matter. 04187_ Y-45 Defender springs to life. 04187_ EXIT=FOUND Map ----- +----------------------------------------------------+ | ?????????????????????????????????????????????????? | | ?????????????????????????????????????????????????? | | ?????????????????????????????????????????????????? | | ?????????????????????????????????????????????????? | | ?????????????????????????????????????????????????? | | ?????????????????????????????????????????????????? | | ?????????????????????????????????????????????????? | | ?????????????????????????????????????????????????? | | ?????????????????????????????????????????????????? | | ?????????????????????????????????????????????????? | | ?????????????????????????????????????????????????? | | ?????????????????????????????????????????????????? | | ?????????????????????????????????????????????????? | | ?????????????????????????????????????????????????? | | ?????????????????????????????????????????????????? | | ?????????????????????????????????????????????????? | | ?????????????????????????????????????????????????? | | ???????????????????????????????????????#?????????? | | ???????????????#############+######### ##????????? | | ???????????????# Y ?????????? | | ??????????????## ?????????? | | ?????????????? """